Cogmind - Beta 16 @@@ ROGUE MODE // 2026.02.05 @ 14:59:53 Player: AlmondRoll Result: Destroyed by H-71 Marshal with Heavy Mass Driver Performance ------------- Evolutions (5) 2500 Regions Visited (15) 3000 Robots Destroyed (122) 610 Value Destroyed (3395) 3395 Prototype IDs (41) 820 Alien Tech Used (0) 0 Bonus (522) 522 TOTAL SCORE: 10847 Bonus ------- High Alert Combat Kills 147 Follower Combat Kills 98 Met Data Miner 300 Friendly Fire -23 Cogmind --------- Core Integrity 0/1000 Matter 176/300 Energy 238/370 System Corruption 14% Temperature Cool (0) Movement Hovering (111) Ox1 Location -5/Factory Parts ------- > --- POWER (2) -------- Light Fission Core Reinforced Fission Core > --- PROPULSION (5) --- Gravmag Array Antigrav System > --- UTILITY (8) ------ Medium Storage Unit Advanced Weight Redist. System Triangulator Advanced Signal Interpreter Experimental Hacking Suite Makeshift System Shield > --- WEAPON (2) ------- Heavy Pick > --- INVENTORY (10) --- (None) Peak State ------------ > --- POWER ------------ Micro Fission Core Micro Fission Core > --- PROPULSION ------- Gravmag Array Antigrav System Antigrav System Antigrav System > --- UTILITY ---------- Advanced Weight Redist. System Advanced Signal Interpreter Improved Target Analyzer Improved Target Analyzer Transmission Jammer Experimental Hacking Suite Makeshift System Shield Improved System Shield > --- WEAPON ----------- Improved Remote Datajack Heavy Pick > --- INVENTORY -------- Micro Fission Core Gravmag Array Antigrav System ECM Suite [Rating: 92] Favorites ----------- Power Subdweller Power Source Engine Subdweller Power Source Power Core Micro Fission Core Reactor Fusion Reactor Propulsion Light Treads Treads Light Treads Leg Improved Aluminum Leg Wheel Subdweller Monowheel Hover Unit Antigrav System Flight Unit Improved Cesium-ion Thruster Utility Makeshift System Shield Device Improved Sensor Array Storage Medium Storage Unit Processor Advanced Signal Interpreter Hackware Makeshift System Shield Protection Scrap Shield Weapon Light Assault Rifle Energy Gun Subdweller Laser Energy Cannon Subdweller Beam Cannon Ballistic Gun Light Assault Rifle Ballistic Cannon Assault Cannon Launcher Mini Grenade Launcher Special Weapon Plasma Cutter Impact Weapon Heavy Mace Piercing Weapon Force Lance Special Melee Weapon Improved Datajack Build | -11 -10 -10 -8 -7 -7 -7 -7 -6 -6 -6 -6 -5 -5 -5 -5 ------- Run | Yrd Mat Sub Mat Fac Low Low Dat Pro Fac Low Zio Pro Fac Was Fac Slots Evolved 10 | . . . 4 2 . . . . 2 . . . 2 . . Power 1 | . . . . . . . . . . . . . 1 . . Propulsion 3 | . . . 2 1 . . . . . . . . . . . Utility 6 | . . . 2 1 . . . . 2 . . . 1 . . Weapon . | . . . . . . . . . . . . . . . . Parts Attached 171 | 4 2 22 34 25 1 . . . 11 . 7 4 12 1 48 Power 23 | . 1 1 2 3 . . . . . . . 1 5 . 10 Engine 3 | . 1 1 1 . . . . . . . . . . . . Core 18 | . . . 1 3 . . . . . . . 1 4 . 9 Reactor 2 | . . . . . . . . . . . . . 1 . 1 Propulsion 55 | 2 . 5 18 10 . . . . 2 . . 1 2 . 15 Treads 19 | 2 . 3 14 . . . . . . . . . . . . Leg 4 | . . . 4 . . . . . . . . . . . . Wheel 2 | . . 2 . . . . . . . . . . . . . Hover 12 | . . . . 1 . . . . 1 . . . . . 10 Flight 18 | . . . . 9 . . . . 1 . . 1 2 . 5 Utility 61 | 1 1 6 7 7 1 . . . 7 . 7 2 4 1 17 Device 28 | 1 . 4 3 2 1 . . . 3 . 3 1 2 1 7 Storage 8 | . 1 1 1 . . . . . . . . . 1 . 4 Processor 11 | . . . 1 2 . . . . 3 . 3 . . . 2 Hackware 6 | . . . 1 1 . . . . . . 1 . 1 . 2 Protection 8 | . . 1 1 2 . . . . 1 . . 1 . . 2 Artifact . | . . . . . . . . . . . . . . . . Weapon 32 | 1 . 10 7 5 . . . . 2 . . . 1 . 6 Energy Gun 2 | . . 1 1 . . . . . . . . . . . . Energy Cannon 1 | . . 1 . . . . . . . . . . . . . Ballistic Gun 13 | 1 . 7 4 . . . . . . . . . . . 1 Ballistic Cannon 1 | . . . 1 . . . . . . . . . . . . Launcher 5 | . . 1 1 1 . . . . . . . . . . 2 Special Weapon 3 | . . . . 1 . . . . 1 . . . . . 1 Impact Weapon 4 | . . . . 2 . . . . 1 . . . . . 1 Slashing Weapon . | . . . . . . . . . . . . . . . . Piercing Weapon 2 | . . . . . . . . . . . . . 1 . 1 Special Melee Weapon 1 | . . . . 1 . . . . . . . . . . . Unidentified Prototypes 17 | . . . 3 3 . . . . . . 6 . 2 . 3 Parts Lost 48 | . . 3 4 4 2 . . . 5 . 1 . . . 29 Power 5 | . . 1 . 1 . . . . . . . . . . 3 Propulsion 19 | . . 1 1 2 2 . . . 1 . . . . . 12 Utility 17 | . . . 2 . . . . . 3 . 1 . . . 11 Weapon 7 | . . 1 1 1 . . . . 1 . . . . . 3 Highest Loss Streak 14 | . . 2 2 2 2 . . . 4 . 1 . . . 14 To Critical Strikes . | . . . . . . . . . . . . . . . . Average Backups 5 | 6 9 3 12 7 5 5 5 5 4 3 4 5 5 9 6 Power . | 1 . . . 1 1 1 1 1 1 1 1 1 . . . Propulsion 1 | 4 2 . 5 1 . . . . . . . . . . . Utility 2 | . 2 . 2 2 2 2 2 2 1 . 2 3 4 8 4 Weapon 1 | 1 4 2 2 . . . . . . 1 . . . . . Tool/Special . | . . . . . . . . . . . . . . . . Unused Backups 32 | . 10 4 4 7 . . . . . . 1 1 . 1 4 Power 5 | . 3 . . . . . . . . . . 1 . . 1 Propulsion 8 | . 3 2 1 2 . . . . . . . . . . . Utility 14 | . 2 1 2 4 . . . . . . 1 . . 1 3 Weapon 5 | . 2 1 1 1 . . . . . . . . . . . Tool/Special . | . . . . . . . . . . . . . . . . Average Slot Usage (%) 89 | . 100 86 94 95 93 84 84 84 89 75 87 98 93 94 83 Engine 7 | . 14 13 4 . . . . . . . . . . . . Core 4 | . . . 4 6 7 7 7 7 6 6 6 6 10 11 10 Treads 16 | . 28 24 29 1 . . . . . . . . . . . Wheel 1 | . . 3 . . . . . . . . . . . . . Hover 2 | . . . . . 7 7 7 7 10 6 6 6 . . 11 Flight 7 | . . . . 32 24 15 15 15 13 20 20 24 23 23 6 Device 9 | . 14 3 9 8 15 15 15 15 20 15 18 20 17 17 18 Storage 3 | . 14 1 9 5 . . . . . . . . . 5 2 Processor 4 | . . . 6 6 7 7 7 7 12 13 14 11 5 5 6 Hackware 5 | . . . 4 14 15 15 15 15 10 6 9 13 16 17 12 Protection 5 | . . 9 3 . . . . . . . . 1 4 . 1 Energy Gun 2 | . . 5 . . . . . . . . . . . . . Energy Cannon 1 | . . 3 1 . . . . . . . . . . . . Ballistic Gun 10 | . 28 18 12 . . . . . . . . . . . . Launcher 1 | . . . . 2 7 7 7 7 1 . 4 6 5 5 2 Impact Weapon 1 | . . . . 6 7 7 7 7 5 6 6 6 . . . Peak Build Rating 92 | 7 8 15 34 43 42 39 39 39 57 48 65 66 81 85 92 Average Rating 32 | 6 7 12 27 38 40 39 39 39 50 46 54 60 77 81 74 On Entrance 39 | 6 7 8 15 34 42 39 39 39 39 48 46 57 59 80 80 Avg Prop Armor Cover (%) 7 | . . 5 6 8 8 10 10 10 12 7 6 4 3 . 8 Naked Turns . | . . . . . . . . . . . . . . . . Heaviest Build 52 | 12 19 32 52 52 13 12 12 12 19 11 16 16 31 31 44 Greatest Support 80 | 40 40 40 80 80 20 20 20 20 20 17 17 22 39 32 62 Greatest Overweight (x) 1 | . . 1 1 . . . . . . . . . . . 1 Average Overweight (x) . | . . . . . . . . . . . . . . . . Largest Inventory Capacity 20 | 8 10 10 20 20 5 5 5 5 5 5 5 5 10 10 10 Average Capacity 7 | 8 9 5 15 9 5 5 5 5 5 5 5 5 5 10 7 Most Carried 20 | 7 10 10 20 20 5 5 5 5 5 4 5 5 10 10 10 Average Carried 7 | 6 9 5 14 9 5 5 5 5 4 3 4 4 5 9 6 Final Capacity 20 | 8 10 10 20 5 5 5 5 5 5 5 5 5 10 10 10 Final Carried 20 | 7 10 10 20 5 5 5 5 5 3 4 5 5 10 10 . Class Distribution -------------------- 31% | Subdweller-Mutant 19% | Mutant 11% | Scavenger-Mutant 11% | Hacker-Ninja 9% | Hacker-Scout 6% | Hacker-Sprinter 5% | Hacker-Mutant Dominant Class ---------------- Mutant | -10/Materials Subdweller-Mutant | -10/Subcaves Scavenger-Mutant | -8/Materials Hacker-Sprinter | -7/Factory Hacker-Scout | -7/Lower Caves Hacker-Sprinter | -7/Lower Caves Hacker-Sprinter | -7/Data Miner Hacker-Sprinter | -6/Proximity Caves Hacker-Scout | -6/Factory Scout | -6/Lower Caves Hacker-Scout | -6/Zion Hacker-Scout | -5/Proximity Caves Hacker-Ninja | -5/Factory Hacker-Scout | -5/Waste Hacker-Mutant | -5/Factory Resources | -11 -10 -10 -8 -7 -7 -7 -7 -6 -6 -6 -6 -5 -5 -5 -5 ----------- Run | Yrd Mat Sub Mat Fac Low Low Dat Pro Fac Low Zio Pro Fac Was Fac Matter Collected 4060 | 276 154 690 1174 432 110 . . . 115 39 203 50 160 100 557 Remotely . | . . . . . . . . . . . . . . . . Salvage Created 4817 | 105 154 579 1461 588 . . . . 59 . . 32 955 . 884 Parts 268 | 7 11 57 100 12 . . . . 6 . . 2 27 . 46 Haulers Intercepted 8 | . . . 5 3 . . . . . . . . . . . Recyclers Shooed 5 | . . . 3 1 . . . . . . . . . . 1 Parts Field Recycled . | . . . . . . . . . . . . . . . . Retrieved Matter . | . . . . . . . . . . . . . . . . Parts Self-Destructed 34 | . . 19 . . 9 . . . . . . 6 . . . Prevented 6 | . . . . . 6 . . . . . . . . . . Parts Restored . | . . . . . . . . . . . . . . . . Kills | -11 -10 -10 -8 -7 -7 -7 -7 -6 -6 -6 -6 -5 -5 -5 -5 ------- Run | Yrd Mat Sub Mat Fac Low Low Dat Pro Fac Low Zio Pro Fac Was Fac Combat Hostiles Destroyed 69 | . 3 17 32 4 . . . . 1 . . 3 . . 9 Melee 6 | . . . . . . . . . . . . . . . 6 Guns 32 | . 3 14 15 . . . . . . . . . . . . Cannons 9 | . . . 9 . . . . . . . . . . . . AOE 22 | . . 3 8 4 . . . . 1 . . 3 . . 3 Classes Destroyed 18 | 2 2 4 7 1 . . . . 1 . . . . . 1 Worker 6 | . . . 5 1 . . . . . . . . . . . Builder 3 | . . . 3 . . . . . . . . . . . . Tunneler 2 | 1 . . 1 . . . . . . . . . . . . Hauler 8 | . . . 5 3 . . . . . . . . . . . Recycler 21 | 1 1 . 3 5 . . . . . . . . 7 . 4 Mechanic 1 | . . . . 1 . . . . . . . . . . . Operator 5 | . . . 2 . . . . . 1 . . . 1 . 1 Watcher 7 | . 1 . 2 . . . . . . . . . 3 . 1 Swarmer 27 | . 3 7 10 4 . . . . . . . 3 . . . Cutter 3 | . . . . . . . . . . . . . . . 3 Grunt 12 | . . 1 11 . . . . . . . . . . . . Duelist 3 | . . . 3 . . . . . . . . . . . . Protector 1 | . . . 1 . . . . . . . . . . . . Sentry 7 | . . 1 6 . . . . . . . . . . . . Hunter 1 | . . . 1 . . . . . . . . . . . . Programmer 7 | . . . . . . . . . 1 . . . . . 6 Artisan 2 | . . 2 . . . . . . . . . . . . . Subdweller 8 | . . 8 . . . . . . . . . . . . . Best Kill Streak 13 | 2 3 5 13 5 . . . . 1 . . 3 2 . 3 Combat Bots Only 5 | . 3 5 5 4 . . . . 1 . . 3 . . 3 Max Kills in Single Turn 4 | 1 1 2 4 3 . . . . 1 . . 2 1 . 3 Gunslinging . | . . . . . . . . . . . . . . . . Exploded 3 | . . 2 2 3 . . . . 1 . . 2 . . 3 Melee 1 | . . . . . . . . . . . . . . . 1 Uniques/NPCs Destroyed . | . . . . . . . . . . . . . . . . Combat | -11 -10 -10 -8 -7 -7 -7 -7 -6 -6 -6 -6 -5 -5 -5 -5 -------- Run | Yrd Mat Sub Mat Fac Low Low Dat Pro Fac Low Zio Pro Fac Was Fac Hostile Shots Fired 666 | . 11 106 169 62 5 2 . 17 50 . . 8 34 . 202 Missed 253 | . 5 30 44 36 3 2 . 11 24 . . 6 19 . 73 Hits 413 | . 6 76 125 26 2 . . 6 26 . . 2 15 . 129 Melee 8 | . . . 3 . . . . . . . . . . . 5 Projectile 405 | . 6 76 122 26 2 . . 6 26 . . 2 15 . 124 AOE 3 | . . . . . . . . . 1 . . . . . 2 Critical Strikes 23 | . . 1 7 1 . . . . 3 . . . 1 . 10 Actively Blocked 3 | . . . . . . . . . . . . . . . 3 Part Disruptions 3 | . . . . . . . . . . . . . . . 3 Actively Blocked 1 | . . . . . . . . . . . . . . . 1 Damage Taken 7888 | . 148 1467 1882 414 52 . . 74 491 . . 29 270 . 3061 Core 1714 | . 39 196 264 88 . . . 17 41 . . 15 119 . 935 Absorbed by Shields . | . . . . . . . . . . . . . . . . Redirected to Shielding 211 | . . . . . . . . . . . . . . . 211 Regen/Repaired (Parts) 47 | . . . 47 . . . . . . . . . . . . Core Remaining (%) 67 | 100 . 6 52 . . . . 85 . . . 93 . . . Volleys Fired 352 | 9 10 174 144 3 . . . . 2 . . 3 . . 7 Largest 2 | 2 2 2 2 1 . . . . 1 . . 1 . . 1 Hottest 117 | 40 40 100 117 30 . . . . 30 . . 30 . . 46 Shots Fired 600 | 18 20 292 255 3 . . . . 2 . . 3 . . 7 Gun 455 | 18 20 281 136 . . . . . . . . . . . . Cannon 118 | . . 9 109 . . . . . . . . . . . . Launcher 27 | . . 2 10 3 . . . . 2 . . 3 . . 7 Special . | . . . . . . . . . . . . . . . . Kinetic 472 | 18 20 222 212 . . . . . . . . . . . . Thermal 101 | . . 68 33 . . . . . . . . . . . . Explosive 26 | . . 2 10 3 . . . . 2 . . 3 . . 6 Electromagnetic 1 | . . . . . . . . . . . . . . . 1 Robot Hit Streak 18 | 5 5 18 15 2 . . . . 1 . . . . . 2 Robot Miss Streak 3 | 3 2 3 3 1 . . . . . . . . . . 1 Penetration Max . | . . . . . . . . . . . . . . . . Secondary Targets 4 | . . 2 2 . . . . . . . . . . . . Max Gunslinging Chain 1 | . . 1 1 . . . . . . . . . . . . Shots Hit Robots 361 | 11 11 110 161 14 . . . . 5 . . . 17 . 32 Core Hits 183 | 4 7 36 90 10 . . . . 3 . . 7 6 . 20 Critical Kills 1 | . . . . . . . . . . . . . 1 . . Critical Parts Destroyed 1 | . . . . 1 . . . . . . . . . . . Critical Strikes 15 | . . 3 . 1 . . . . . . . . 2 . 9 Destroy 3 | . . 3 . . . . . . . . . . . . . Smash 2 | . . . . 1 . . . . . . . . 1 . . Impale 10 | . . . . . . . . . . . . . 1 . 9 Melee Attacks 167 | . . . . 50 3 . . 1 17 . . 1 37 . 58 Impact 78 | . . . . 50 3 . . 1 17 . . 1 3 . 3 Slashing . | . . . . . . . . . . . . . . . . Piercing 89 | . . . . . . . . . . . . . 34 . 55 Sneak Attacks 26 | . . . . 10 . . . . . . . . 10 . 6 Combat Hostiles . | . . . . . . . . . . . . . . . . Follow-up Attacks . | . . . . . . . . . . . . . . . . Damage Inflicted 11363 | 105 181 1823 4277 1350 . . . . 262 . . 122 1418 . 1825 Guns 3049 | 105 119 1561 1264 . . . . . . . . . . . . Cannons 1785 | . . 53 1732 . . . . . . . . . . . . Explosions 2294 | . 51 209 1277 204 . . . . 73 . . 122 . . 358 Melee 4220 | . . . . 1146 . . . . 189 . . . 1418 . 1467 Ramming 15 | . 11 . 4 . . . . . . . . . . . . Kinetic 3654 | 105 119 1173 2257 . . . . . . . . . . . . Thermal 1450 | . . 441 1009 . . . . . . . . . . . . Explosive 2000 | . 51 209 1007 204 . . . . 73 . . 122 . . 334 Electromagnetic 24 | . . . . . . . . . . . . . . . 24 Impact 1562 | . . . . 1146 . . . . 189 . . . 227 . . Slashing . | . . . . . . . . . . . . . . . . Piercing 2658 | . . . . . . . . . . . . . 1191 . 1467 Highest Corruption 15 | . . . . 1 1 1 1 1 1 1 1 . 2 2 15 Average Corruption 3 | . . . . 1 1 1 1 1 1 1 1 . 2 1 7 Corruption Purged 3 | . . . . . . . . . . . . . . 2 1 Corruption Blocked . | . . . . . . . . . . . . . . . . Effects 31 | . . . . . 1 2 . 1 2 1 1 . 1 1 21 Message Errors 8 | . . . . . . . . . . 1 . . 1 1 5 Matter Fused 7 | . . . . . . 2 . . 1 . 1 . . . 3 Heat Flow Errors 4 | . . . . . 1 . . . . . . . . . 3 Energy Discharges 7 | . . . . . . . . 1 1 . . . . . 5 Parts Rejected 1 | . . . . . . . . . . . . . . . 1 Data Loss (minor) 2 | . . . . . . . . . . . . . . . 2 Data Loss (major) 1 | . . . . . . . . . . . . . . . 1 Alerts 1 | . . . . . . . . . . . . . . . 1 Overload Shots . | . . . . . . . . . . . . . . . . Overflow Damage 1957 | . . 25 185 533 . . . . 35 . . . 486 . 693 Projectiles 35 | . . . 35 . . . . . . . . . . . . Explosions 212 | . . 25 150 2 . . . . . . . . . . 35 Melee 1710 | . . . . 531 . . . . 35 . . . 486 . 658 Knockbacks 13 | . . . 8 4 . . . . . . . . 1 . . Impact 5 | . . . . 4 . . . . . . . . 1 . . Kinetic 7 | . . . 7 . . . . . . . . . . . . Secondary 1 | . . . 1 . . . . . . . . . . . . Self-Inflicted Damage 416 | . 101 43 14 54 . . . . . . . . . . 204 Shots 11 | . 1 2 1 2 . . . . . . . . . . 5 Rammed 1 | . 1 . . . . . . . . . . . . . . Targets Rammed 2 | . 1 . 1 . . . . . . . . . . . . Kicked 1 | . . . 1 . . . . . . . . . . . . Crushed . | . . . . . . . . . . . . . . . . Highest Temperature 333 | . . 10 333 15 166 . . . . . . . 18 2 269 Average Temperature 80 | . . 5 140 6 84 . . . . . . . 6 2 73 Received Heat Transfer 1260 | . 15 150 855 90 9 . . 12 36 . . . 36 . 57 Siege Activations . | . . . . . . . . . . . . . . . . Martial Activations . | . . . . . . . . . . . . . . . . Shielding Activations . | . . . . . . . . . . . . . . . . Robots Disrupted . | . . . . . . . . . . . . . . . . Combat Hostiles . | . . . . . . . . . . . . . . . . Robots Corrupted 7 | . . . . 5 . . . . 1 . . . 1 . . Combat Hostiles . | . . . . . . . . . . . . . . . . Parts Fried 11 | . . . . 7 . . . . 2 . . . 2 . . Impact Corruptions 22 | . . . . 15 . . . . 4 . . . 3 . . Robots Melted . | . . . . . . . . . . . . . . . . Combat Hostiles . | . . . . . . . . . . . . . . . . Parts Melted 1 | . . . 1 . . . . . . . . . . . . Heat Transferred 1748 | . . 549 1199 . . . . . . . . . . . . Parts Sabotaged . | . . . . . . . . . . . . . . . . Parts Stolen . | . . . . . . . . . . . . . . . . Parts Stripped . | . . . . . . . . . . . . . . . . Power Chain Reactions . | . . . . . . . . . . . . . . . . Alert | -11 -10 -10 -8 -7 -7 -7 -7 -6 -6 -6 -6 -5 -5 -5 -5 ------- Run | Yrd Mat Sub Mat Fac Low Low Dat Pro Fac Low Zio Pro Fac Was Fac Maximum Alert Level 3 | . . . 3 3 . . . . . . . . . . 1 Low Security (%) 45 | 100 100 . 13 . . . . . 100 . . . 100 100 43 Level 1 25 | . . . 28 26 . . . . . . . . . . 56 Level 2 23 | . . . 55 42 . . . . . . . . . . . Level 3 5 | . . . 2 31 . . . . . . . . . . . Level 4 . | . . . . . . . . . . . . . . . . Level 5 . | . . . . . . . . . . . . . . . . High Security . | . . . . . . . . . . . . . . . . Max Security . | . . . . . . . . . . . . . . . . Peak Influence 807 | 5 65 . 706 807 . . . . 170 . . . 194 . 285 Initial 312 | . . . . 312 . . . . 150 . . . 194 . . Average 272 | 1 16 . 415 568 . . . . 145 . . . 85 . 161 Influence Increases 4550 | 10 160 280 1282 880 105 60 . . 383 . . 149 466 . 775 Destroy 0b10 Robot/C 1240 | . 60 180 620 80 . . . . 20 . . 100 . . 180 Destroy 0b10 Robot/NC 280 | 10 10 . 110 50 . . . . 5 . . 10 55 . 30 Destroy Leader 278 | . 12 10 154 14 . . . . 10 . . 30 6 . 42 Allied During Kill 9 | . . . . . . . . . . . . 9 . . . Successful Hack 201 | . 5 . 31 81 . . . . 12 . . . 32 . 40 Select Force Hacks 110 | . 30 . 30 . . . . . . . . . . . 50 Disable Machine 600 | . 15 . 210 150 . . . . 90 . . . . . 135 Anti-Garrison Action 150 | . . . . . . . . . . . . . 150 . . Destroy Structure 437 | . 28 . 97 55 . . . . 21 . . . 28 . 208 Advance Influence 300 | . . . . . . . . . 150 . . . 150 . . Partial Spotted 150 | . . . . 75 . . . . . . . . 45 . 30 Lose Combat Pursuer 795 | . . 90 30 375 105 60 . . 75 . . . . . 60 Influence Decreases 4526 | 10 117 322 594 783 371 159 421 . 220 81 82 79 535 1 751 Entered New Map 1381 | . . 22 1 377 291 99 421 . . 61 82 . 26 1 . Time Decay 2533 | 10 117 291 553 356 60 60 . . 170 20 . 72 363 . 461 Lost Part 449 | . . 9 40 40 20 . . . 50 . . . . . 290 Lost Ally 17 | . . . . 10 . . . . . . . 7 . . . Purge Threat 146 | . . . . . . . . . . . . . 146 . . Squads Dispatched 34 | . 1 . 4 7 . . . . 2 . . . 12 . 8 Investigation 9 | . 1 . 1 2 . . . . 1 . . . 1 . 3 Extermination 12 | . . . . 4 . . . . 1 . . . 3 . 4 Reinforcement 9 | . . . 2 . . . . . . . . . 6 . 1 Assault 4 | . . . 1 1 . . . . . . . . 2 . . Garrison . | . . . . . . . . . . . . . . . . Intercept . | . . . . . . . . . . . . . . . . Searches Triggered . | . . . . . . . . . . . . . . . . Data Miner Redirects 2 | . . . . . . . . . . . . . 1 . 1 Construction Impeded 1 | . . . 1 . . . . . . . . . . . . Haulers Reinforced 1 | . . . . . . . . . . . . . 1 . . Active Scanning Responses . | . . . . . . . . . . . . . . . . Cargo Convoy Interrupts . | . . . . . . . . . . . . . . . . Stealth | -11 -10 -10 -8 -7 -7 -7 -7 -6 -6 -6 -6 -5 -5 -5 -5 --------- Run | Yrd Mat Sub Mat Fac Low Low Dat Pro Fac Low Zio Pro Fac Was Fac Distress Signals 12 | . . . 2 3 . . . . . . . . 5 . 2 Communications Jammed 10 | . . . . . . . . . . . . . . . 10 Distress Signals 10 | . . . . . . . . . . . . . . . 10 Times Spotted 228 | . 6 22 49 37 5 4 . 5 11 . . 5 44 . 40 Peak Tracking Total 11 | . 2 4 6 11 5 4 . 4 7 . . 4 9 . 8 Tactical Retreats 49 | . . 3 1 15 2 1 . . 3 . . . 15 . 9 ECM-based Alert Blocks 57 | . . . . . . . . . . . . . 42 . 15 Traps | -11 -10 -10 -8 -7 -7 -7 -7 -6 -6 -6 -6 -5 -5 -5 -5 ------- Run | Yrd Mat Sub Mat Fac Low Low Dat Pro Fac Low Zio Pro Fac Was Fac Traps Triggered 12 | . . 5 . 1 . . . . . . . . 1 . 5 Indirectly . | . . . . . . . . . . . . . . . . Trap Hack Attempts . | . . . . . . . . . . . . . . . . Triggered . | . . . . . . . . . . . . . . . . Disarmed . | . . . . . . . . . . . . . . . . Reprogrammed . | . . . . . . . . . . . . . . . . Reused . | . . . . . . . . . . . . . . . . Traps Extracted . | . . . . . . . . . . . . . . . . Installed . | . . . . . . . . . . . . . . . . Triggered . | . . . . . . . . . . . . . . . . Machines | -11 -10 -10 -8 -7 -7 -7 -7 -6 -6 -6 -6 -5 -5 -5 -5 ---------- Run | Yrd Mat Sub Mat Fac Low Low Dat Pro Fac Low Zio Pro Fac Was Fac Machines Disabled 42 | . 1 1 14 10 . . . . 6 . . . 1 . 9 Max in Single Turn 9 | . 1 1 9 4 . . . . 1 . . . 1 . 6 Garrison Access 7 | . . . . 2 . . . . 1 . . . 3 . 1 Machines Repaired 1 | . . . . . . . . . 1 . . . . . . Machines Dismantled 2 | . . . . 2 . . . . . . . . . . . Machines Sabotaged . | . . . . . . . . . . . . . . . . Overloaded Fab Kills . | . . . . . . . . . . . . . . . . Hacking | -11 -10 -10 -8 -7 -7 -7 -7 -6 -6 -6 -6 -5 -5 -5 -5 --------- Run | Yrd Mat Sub Mat Fac Low Low Dat Pro Fac Low Zio Pro Fac Was Fac Machines Accessed 70 | . 3 4 7 14 1 . 4 . 6 . . . 15 . 16 Terminals 32 | . 2 . 5 7 . . . . 2 . . . 8 . 8 Fabricators 5 | . . . . 1 . . . . 2 . . . . . 2 Repair Stations 2 | . . . 1 . . . . . . . . . . . 1 Recycling Units 12 | . 1 . 1 3 . . . . . . . . 3 . 4 Scanalyzers 3 | . . . . 1 . . . . 1 . . . 1 . . Garrison Access 7 | . . . . 2 . . . . 1 . . . 3 . 1 Total Hacks 204 | . 5 15 16 34 1 . 32 . 12 . . . 49 . 40 Successful 123 | . 2 15 7 14 1 . 32 . 4 . . . 29 . 19 Failed 81 | . 3 . 9 20 . . . . 8 . . . 20 . 21 Catastrophic 20 | . 1 . 3 7 . . . . 1 . . . 3 . 5 Database Lockouts . | . . . . . . . . . . . . . . . . Manual 46 | . 3 . 7 7 . . . . 3 . . . 18 . 8 Terminals 79 | . 4 . 10 19 . . . . 3 . . . 20 . 23 Fabricators 10 | . . . . 2 . . . . 5 . . . . . 3 Repair Stations 5 | . . . 2 . . . . . . . . . . . 3 Recycling Units 37 | . 1 . 4 7 . . . . . . . . 15 . 10 Scanalyzers 13 | . . . . 3 . . . . 3 . . . 7 . . Garrison Access 12 | . . . . 3 . . . . 1 . . . 7 . 1 Terminal Hacks 74 | . . 15 3 7 1 . 32 . . . . . 10 . 6 Record 23 | . . 12 . . . . 11 . . . . . . . . Part Schematic 13 | . . . . . . . 12 . . . . . 1 . . Robot Schematic 6 | . . . . . . . 6 . . . . . . . . Prototype ID Bank 5 | . . . 1 1 . . 3 . . . . . . . . Open Door 2 | . . 1 . . 1 . . . . . . . . . . Open DSF 1 | . . . . . . . . . . . . . 1 . . Level Access Points 2 | . . . . 1 . . . . . . . . . . 1 Branch Access Points 3 | . . . 1 1 . . . . . . . . 1 . . Terminal Index 1 | . . . . 1 . . . . . . . . . . . Alert Level 1 | . . . . . . . . . . . . . . . 1 Unreport Threat 1 | . . . . . . . . . . . . . 1 . . Locate Traps 6 | . . . 1 1 . . . . . . . . 3 . 1 Extermination Status 1 | . . . . . . . . . . . . . 1 . . Recall Extermination 1 | . . . . . . . . . . . . . 1 . . Hauler Manifests 3 | . . . . 2 . . . . . . . . . . 1 Registered Components 2 | . . . . . . . . . . . . . 1 . 1 Zone Layout 1 | . . . . . . . . . . . . . . . 1 Proto ID Catalog 1 | . . 1 . . . . . . . . . . . . . Release Object 1 | . . 1 . . . . . . . . . . . . . Fabricator Hacks 4 | . . . . . . . . . 2 . . . . . 2 Load Schematic 2 | . . . . . . . . . 1 . . . . . 1 Build 2 | . . . . . . . . . 1 . . . . . 1 Repair Station Hacks 3 | . . . 2 . . . . . . . . . . . 1 Scan Component 2 | . . . 1 . . . . . . . . . . . 1 Repair 1 | . . . 1 . . . . . . . . . . . . Recycling Unit Hacks 10 | . . . . 2 . . . . . . . . 4 . 4 Report Inventory 8 | . . . . 1 . . . . . . . . 3 . 4 Retrieve Components 2 | . . . . 1 . . . . . . . . 1 . . Scanalyzer 6 | . . . . 2 . . . . . . . . 4 . . Insert Component 2 | . . . . 1 . . . . . . . . 1 . . Analyze 4 | . . . . 1 . . . . . . . . 3 . . Garrison Access Hacks 6 | . . . . 2 . . . . 1 . . . 2 . 1 Seal Access 6 | . . . . 2 . . . . 1 . . . 2 . 1 Unauthorized Hacks 20 | . 2 . 2 1 . . . . 1 . . . 9 . 5 Terminals 6 | . 1 . 1 1 . . . . 1 . . . 2 . . Track 1 | . . . . . . . . . 1 . . . . . . Assimilate 2 | . . . . 1 . . . . . . . . 1 . . Botnet 3 | . 1 . 1 . . . . . . . . . 1 . . Fabricators 1 | . . . . . . . . . . . . . . . 1 Overload 1 | . . . . . . . . . . . . . . . 1 Repair Stations . | . . . . . . . . . . . . . . . . Recycling Units 13 | . 1 . 1 . . . . . . . . . 7 . 4 Monitor 1 | . . . . . . . . . . . . . 1 . . Reject 6 | . . . . . . . . . . . . . 3 . 3 Recyclers 1 | . . . . . . . . . . . . . 1 . . Mask 3 | . . . . . . . . . . . . . 2 . 1 Tunnel 2 | . 1 . 1 . . . . . . . . . . . . Scanalyzers . | . . . . . . . . . . . . . . . . Garrison Access . | . . . . . . . . . . . . . . . . Data Cores Recovered 3 | . . . 1 . . . . . 1 . . . 1 . . Used . | . . . . . . . . . . . . . . . . Hacking Detections 46 | . 2 . 5 10 . . . . 5 . . . 11 . 13 Full Trace Events 7 | . . . 1 2 . . . . 1 . . . 1 . 2 Feedback Events . | . . . . . . . . . . . . . . . . Feedback Blocked 1 | . . . . . . . . . . . . . 1 . . Robot Schematics Acquired 6 | . . . . . . . 6 . . . . . . . . Robots Built . | . . . . . . . . . . . . . . . . Authchips . | . . . . . . . . . . . . . . . . Time . | . . . . . . . . . . . . . . . . Total Robot Build Rating . | . . . . . . . . . . . . . . . . Part Schematics Acquired 15 | . . . . 1 . . 12 . . . . . 2 . . Parts Built 2 | . . . . . . . . . 1 . . . . . 1 Authchips . | . . . . . . . . . . . . . . . . Time 152 | . . . . . . . . . 76 . . . . . 76 Total Part Build Rating 10 | . . . . . . . . . 5 . . . . . 5 Part Studies Acquired . | . . . . . . . . . . . . . . . . Parts Repaired 1 | . . . 1 . . . . . . . . . . . . Time 38 | . . . 38 . . . . . . . . . . . . Parts Recycled . | . . . . . . . . . . . . . . . . Recycled Matter . | . . . . . . . . . . . . . . . . Retrieved Matter . | . . . . . . . . . . . . . . . . Retrieved Components 5 | . . . . 2 . . . . . . . . 3 . . Parts Scanalyzed 2 | . . . . 1 . . . . . . . . 1 . . Part Schematics Acquired 2 | . . . . 1 . . . . . . . . 1 . . Parts Damaged . | . . . . . . . . . . . . . . . . Bothacking | -11 -10 -10 -8 -7 -7 -7 -7 -6 -6 -6 -6 -5 -5 -5 -5 ------------ Run | Yrd Mat Sub Mat Fac Low Low Dat Pro Fac Low Zio Pro Fac Was Fac Used RIF Installer . | . . . . . . . . . . . . . . . . Robots Hacked . | . . . . . . . . . . . . . . . . Non-combat . | . . . . . . . . . . . . . . . . Combat . | . . . . . . . . . . . . . . . . Robot Hacks Applied . | . . . . . . . . . . . . . . . . Relay Couplers Released 1 | . . . . . . . . . . . . . 1 . . Machine Destruction 1 | . . . . . . . . . . . . . 1 . . Fabnet Peak Effective % . | . . . . . . . . . . . . . . . . Robots Rewired . | . . . . . . . . . . . . . . . . Allies Hacked . | . . . . . . . . . . . . . . . . Hacks Repelled . | . . . . . . . . . . . . . . . . Allies | -11 -10 -10 -8 -7 -7 -7 -7 -6 -6 -6 -6 -5 -5 -5 -5 -------- Run | Yrd Mat Sub Mat Fac Low Low Dat Pro Fac Low Zio Pro Fac Was Fac Total Allies 5 | . . . . 1 . . . . . . 3 . 1 . . Largest Group 3 | . . . . 1 . . . . . . 3 3 1 1 1 Highest-Rated Group 73 | . . . . 10 . . . . . . 73 73 26 26 26 Highest-Rated Ally 31 | . . . . 10 . . . . . . 31 31 26 26 26 Total Orders . | . . . . . . . . . . . . . . . . Ally Attacks 29 | . . . . . . . . . . . . 29 . . . Total Damage 301 | . . . . . . . . . . . . 301 . . . Kills 4 | . . . . . . . . . . . . 4 . . . Allies Corrupted . | . . . . . . . . . . . . . . . . Allies Melted . | . . . . . . . . . . . . . . . . Intel | -11 -10 -10 -8 -7 -7 -7 -7 -6 -6 -6 -6 -5 -5 -5 -5 ------- Run | Yrd Mat Sub Mat Fac Low Low Dat Pro Fac Low Zio Pro Fac Was Fac Active Infowar (turns) 7566 | 20 353 885 1655 781 123 125 28 153 359 54 569 177 865 130 1289 Optics 2003 | . . 627 312 40 . . . . 255 54 569 146 . . . Sensors 4184 | . . . . 534 116 125 28 153 314 54 569 177 865 130 1119 IFF 2 | . . . . . . . . . . . 2 . . . . Terrain 126 | . . 126 . . . . . . . . . . . . . Structural 3821 | . . . 733 422 78 . . . 302 54 566 157 865 130 514 Seismic 505 | 20 353 132 . . . . . . . . . . . . . T.N.C. 1507 | . . . 1343 164 . . . . . . . . . . . Triangulation 20 | . . . . . . . . . . . . . . . 20 Cloaking 9 | . . . . . . . . . . . . . . . 9 Jamming 1101 | . . . . . . . . . 29 . . . . . 1072 ECM 1661 | . . . . . . . . . . . . . 836 86 739 Robot Analysis Total . | . . . . . . . . . . . . . . . . Derelict Logs Recovered 9 | . . 1 . . 1 3 . 2 . . 2 . . . . Drone Launches 1 | . . . . . . . . . . . . 1 . . . Drone Recoveries . | . . . . . . . . . . . . . . . . Exploration | -11 -10 -10 -8 -7 -7 -7 -7 -6 -6 -6 -6 -5 -5 -5 -5 ------------- Run | Yrd Mat Sub Mat Fac Low Low Dat Pro Fac Low Zio Pro Fac Was Fac Turns Passed 12337 | 58 353 5402 1813 803 123 125 28 153 359 54 569 177 865 130 1325 Spaces Moved 13845 | 17 194 3206 733 1771 391 389 86 413 672 177 1022 357 1800 249 2368 Core 141 | . . . . . . . . . . . . . . . 141 Treads 3190 | 17 194 2327 640 12 . . . . . . . . . . . Legs 93 | . . . 93 . . . . . . . . . . . . Wheels 879 | . . 879 . . . . . . . . . . . . . Hover 926 | . . . . . . . . . . . . . . . 926 Flight 8616 | . . . . 1759 391 389 86 413 672 177 1022 357 1800 249 1301 Fastest Speed 14 | 160 160 120 120 24 26 32 32 32 29 29 29 26 26 29 14 Average Speed 67 | 160 160 149 165 26 28 32 32 32 31 29 29 26 28 29 39 Slowest Speed 260 | 160 160 260 260 170 32 32 32 32 32 29 29 29 29 29 111 Overloaded Moves 60 | . . . . . . . . . . . . . . . 60 Propulsion Burnouts 1 | . . . . . . . . . . . . . . . 1 Robots Hopped 36 | . . . . 7 . . . 2 7 . . . 16 . 4 Potential Cave-ins . | . . . . . . . . . . . . . . . . Cave-ins Triggered . | . . . . . . . . . . . . . . . . Exploration Rate (%) 56 | 2 44 97 56 58 58 60 70 66 16 33 85 56 43 95 58 Regions Visited 15 Branch Regions 8 Pre-discovered Areas 6 | . 1 1 1 . . . 1 1 . . 1 . . . . Known Exits Taken 10 | . . 1 . 1 1 1 1 1 1 1 1 1 . . . Unknown Exits Taken 3 | 1 1 . 1 . . . . . . . . . . . . Scrap Searched 30 | . . 12 . . 3 8 . . . 1 3 3 . . . Spaces Dug 117 | . . 13 5 28 3 . . 1 7 . . . 14 . 46 Terrain Destroyed 401 | . 33 14 119 62 3 . . 1 30 . . 22 14 . 103 Melee 68 | . . . . 28 3 . . 1 7 . . . 14 . 15 Projectile 23 | . . 2 21 . . . . . . . . . . . . AOE 310 | . 33 12 98 34 . . . . 23 . . 22 . . 88 Terrain Rammed . | . . . . . . . . . . . . . . . . Walls Destroyed . | . . . . . . . . . . . . . . . . Machines Disabled . | . . . . . . . . . . . . . . . . Actions | -11 -10 -10 -8 -7 -7 -7 -7 -6 -6 -6 -6 -5 -5 -5 -5 --------- Run | Yrd Mat Sub Mat Fac Low Low Dat Pro Fac Low Zio Pro Fac Was Fac Total 15824 | 30 223 3549 1094 1962 396 388 85 429 770 179 1293 433 2069 311 2613 Wait 892 | . . 60 94 33 1 . . 18 60 2 249 60 202 51 62 Move 13765 | 16 193 3205 732 1758 390 388 85 409 657 176 1021 356 1771 248 2360 Hop 30 | . . . . 5 . . . 1 7 . . . 13 . 4 Pick Up 118 | 1 9 25 35 15 . . . . 2 . 2 1 9 5 14 Fast Attach 121 | 1 . 15 15 13 . . . . 4 . 10 6 10 . 47 Attach 50 | . . 6 10 13 . . . . 4 . 2 . 1 1 13 Detach 6 | . . . . 2 . . . . . 1 2 . . . 1 Swap 83 | 3 2 9 23 11 2 . . . 12 . . . 8 1 12 Drop 188 | . 8 37 38 32 . . . . 4 . 7 6 17 5 34 Fire 352 | 9 10 174 144 3 . . . . 2 . . 3 . . 7 Melee 167 | . . . . 50 3 . . 1 17 . . 1 37 . 58 Ram . | . . . . . . . . . . . . . . . . Kick 1 | . . . 1 . . . . . . . . . . . . Crush 1 | . 1 . . . . . . . . . . . . . . Escape Stasis . | . . . . . . . . . . . . . . . . Rewire . | . . . . . . . . . . . . . . . . Trap . | . . . . . . . . . . . . . . . . Miscellaneous 50 | . . 18 2 27 . . . . 1 . . . 1 . 1 Route ------- -11/Scrapyard -10/Materials (discovered 2 exits: [*Min] / *Sub) -10/Subcaves (discovered 3 exits: *Mat x2 / Rec) -8/Materials -7/Factory (discovered 6 exits: Fac x4 / *Low x2) -7/Lower Caves -7/Lower Caves -7/Data Miner -6/Proximity Caves -6/Factory (discovered 2 exits: *Fac / *Low) -6/Lower Caves -6/Zion -5/Proximity Caves -5/Factory (discovered 2 exits: Upp x2) -5/Waste -5/Factory (discovered 4 exits: *Fac x4) History --------- Turn | Location | Event 20 | -11/Scrapyard | Discovered new exit (range 2) 59 | -11/Scrapyard | Entered Materials 300 | -10/Materials | Discovered new exit (range 16) 318 | -10/Materials | Build established: Mutant 411 | -10/Materials | Discovered new exit (range 3) 412 | -10/Materials | Entered Subcaves 413 | -10/Subcaves | Approached by a straggling Scientist 426 | -10/Subcaves | Learned location of Zion (-6) 426 | -10/Subcaves | Met a Zionite searching for "candidates" 532 | -10/Subcaves | Shifting Twisted Machinery released Spk. Treads 562 | -10/Subcaves | Shifting Twisted Machinery released Sub. Machine Gun 888 | -10/Subcaves | Discovered new exit (range 5) 917 | -10/Subcaves | Visited Clippyterm 922 | -10/Subcaves | Identified exit to Recycling 922 | -10/Subcaves | Identified exit to Materials 960 | -10/Subcaves | Ambushed by Subdweller buried in earth 2266 | -10/Subcaves | Core integrity fell below 50% 2364 | -10/Subcaves | Shifting Twisted Machinery released Battle Cannon 2400 | -10/Subcaves | Shifting Twisted Machinery released Battle Rifle 2414 | -10/Subcaves | Build established: Subdweller-Mutant 2490 | -10/Subcaves | A swath of the cavern ceiling suddenly collapsed 3817 | -10/Subcaves | Shifting Twisted Machinery released Sub. Beam Cannon 3829 | -10/Subcaves | Shifting Twisted Machinery released Battle Rifle 4295 | -10/Subcaves | Curiously followed by a Cobbler waking with a query about "LVR3C" 4777 | -10/Subcaves | Core integrity fell below 20% 5007 | -10/Subcaves | Released subatomizers from SUBCON Basin 5212 | -10/Subcaves | Visited 4L-MR0's lab 5236 | -10/Subcaves | Found Arachnoskeleton 5814 | -10/Subcaves | Entered Materials 5814 | -8/Materials | Evolved 4 slots: Propulsion x2, Utility x2 6305 | -8/Materials | Build established: Scavenger-Mutant 6614 | -8/Materials | First assault squad dispatched 7402 | -8/Materials | Repaired Lgt. Nuclear Core 7610 | -8/Materials | Discovered new exit (range 7) 7627 | -8/Materials | Entered Factory 7627 | -7/Factory | Evolved 2 slots: Propulsion x1, Utility x1 8027 | -7/Factory | First assault squad dispatched 8099 | -7/Factory | Build established: Hacker-Sprinter 8256 | -7/Factory | Identified exit to Factory 8295 | -7/Factory | Identified exit to Lower Caves 8430 | -7/Factory | Entered Lower Caves 8500 | -7/Lower Caves | Spotted B-75 Beast 8514 | -7/Lower Caves | Encountered a Warlord checkpoint 8548 | -7/Lower Caves | Discovered new exit (range 7) 8553 | -7/Lower Caves | Identified exit to Lower Caves 8553 | -7/Lower Caves | Entered another Lower Caves area 8554 | -7/Lower Caves | Encountered a Warlord checkpoint 8556 | -7/Lower Caves | Learned Factory emergency access door positions 8566 | -7/Lower Caves | Learned Factory terminal intel 8601 | -7/Lower Caves | Learned Factory terminal intel 8674 | -7/Lower Caves | Discovered new exit (range 6) 8675 | -7/Lower Caves | Identified exit to Data Miner 8678 | -7/Lower Caves | Entered Data Miner 8678 | -7/Data Miner | Discovered new exit (range 6) 8685 | -7/Data Miner | Met Data Miner 8692 | -7/Data Miner | Learned location of Section 7 (-2) 8692 | -7/Data Miner | Acquired the access code to Warlord's prototype stash 8696 | -7/Data Miner | Received God Mode back door access code from Data Miner 8705 | -7/Data Miner | Identified exit to Proximity Caves 8706 | -7/Data Miner | Entered Proximity Caves 8778 | -6/Proximity Caves | Spotted B-75 Beast 8825 | -6/Proximity Caves | Spotter reported a threat 8851 | -6/Proximity Caves | Attracted the attention of an 0b10 checkpoint 8859 | -6/Proximity Caves | Entered Factory 8859 | -6/Factory | Evolved 2 slots: Utility x2 8861 | -6/Factory | Loaded intel: 26 terminal locations 8895 | -6/Factory | Discovered new exit (range 5) 8896 | -6/Factory | Identified exit to Factory 9000 | -6/Factory | Discovered new exit (range 9) 9020 | -6/Factory | Identified exit to Lower Caves 9135 | -6/Factory | Fabricated Cld. Cesium-ion Thruster? 9218 | -6/Factory | Entered Lower Caves 9231 | -6/Lower Caves | Lost 4 parts (1n2u1w) 9268 | -6/Lower Caves | A Derelict revealed a hidden shortcut to a safe place 9272 | -6/Lower Caves | Identified exit to Zion 9272 | -6/Lower Caves | Entered Zion 9279 | -6/Zion | Found Prototype Device 9279 | -6/Zion | Identified Mobile Refinery Mk. CCLXVII 9296 | -6/Zion | Discovered new exit (range 17) 9302 | -6/Zion | Given A8's code to call for help 9323 | -6/Zion | System corruption cleaned by Quarantine Array 9340 | -6/Zion | Learned location of Armory (-4) 9350 | -6/Zion | Received a visual enhancement algorithm 9369 | -6/Zion | Found Prototype Device 9369 | -6/Zion | Identified Phasing AFG 9377 | -6/Zion | Gained Derelict followers 9426 | -6/Zion | Found Prototype Processor 9426 | -6/Zion | Identified Exp. Terrain Scan Processor 9428 | -6/Zion | Found Prototype Processor 9428 | -6/Zion | Identified Exp. Melee Analysis Suite 9431 | -6/Zion | Found Prototype Processor 9431 | -6/Zion | Identified Exp. Armor Integrity Analyzer 9452 | -6/Zion | Found Exp. Terrain Scan Processor 9454 | -6/Zion | Found Prototype Hackware 9464 | -6/Zion | Learned Factory terminal intel 9474 | -6/Zion | Build established: Scout 9612 | -6/Zion | Identified exit to Proximity Caves 9805 | -6/Zion | Build established: Hacker-Scout 9841 | -6/Zion | Entered Proximity Caves 9841 | -5/Proximity Caves | Accompanied by 3 allies 9844 | -5/Proximity Caves | Spotter reported a threat 10014 | -5/Proximity Caves | Discovered exit to Factory (range 10) 10018 | -5/Proximity Caves | Entered Factory 10018 | -5/Factory | Evolved 2 slots: Power x1, Utility x1 10019 | -5/Factory | Loaded intel: 26 terminal locations 10077 | -5/Factory | Identified Exp. Hacking Suite 10314 | -5/Factory | Build established: Hacker-Ninja 10685 | -5/Factory | Incoming assault squad redirected 10744 | -5/Factory | Identified exit to Upper Caves 10883 | -5/Factory | Manually triggered Chute Trap 10883 | -5/Factory | Sucked down chute 10883 | -5/Factory | Entered Waste 10883 | -5/Waste | The area was eerily silent 10918 | -5/Waste | 1 allies followed down the chute 10976 | -5/Waste | Discovered new exit (range 12) 11002 | -5/Waste | Identified exit to Factory 11013 | -5/Waste | Entered Factory 11013 | -5/Factory | Accompanied by 1 ally 11014 | -5/Factory | Loaded intel: 26 terminal locations 11186 | -5/Factory | Identified exit to Factory 11418 | -5/Factory | Fabricated Cld. Cesium-ion Thruster? 11466 | -5/Factory | Lost 3 parts (3n) 11558 | -5/Factory | Incoming investigation squad redirected 11558 | -5/Factory | Lost 4 parts (2n2u) 11809 | -5/Factory | Lost 4 parts (3u1w) 11861 | -5/Factory | Core integrity fell below 50% 11882 | -5/Factory | System corruption reached 10% 12088 | -5/Factory | Build established: Hacker-Mutant 12144 | -5/Factory | Found Prototype Launcher 12144 | -5/Factory | Identified Tesla Bomb Launcher 12334 | -5/Factory | Core integrity fell below 20% 12338 | -5/Factory | Destroyed by H-71 Marshal with Heavy Mass Driver Last Messages --------------- 12306_ Penetrated by Slug. 12309_ Slug penetrates Wall. 12311_ Antigrav System destroyed. 12316_ Manufacturing Mainframe disabled. 12316_ Imp. Heat Sink destroyed. 12318_ Acquired Triangulator. 12319_ System corrupted: Energy discharge (-58). 12324_ Lgt. Fission Core destroyed. 12329_ Acquired Imp. System Restoration Module. 12331_ Acquired Rnf. Fission Core. 12333_ Imp. System Restoration Module purges 1% system corruption (14%). 12333_ Slug penetrates Wall. 12333_ Power Conduit explodes. 12335_ Imp. System Restoration Module destroyed. 12336_ Knocked back. 12336_ K-01 Serf collects debris. 12336_ Slug penetrates Wall. 12336_ Imp. Gravmag System destroyed. 12336_ Slug penetrates Wall. 12336_ Acquired 8 matter. Map ----- +----------------------------------------------------+ | ??# ^# = # # # """ """ | | ### #####" # # """ """ | | # # """ """ | | + # | | # # """ """ | | |[[ # * # """ """ | | ![! # #= """ """ | | ############+######+### # # | | ##???# ! =%!!## # ##########"########## | | T#??## *! ## # # """"""" ##????????? | | ???## |[ ## # + """"""" #?????????? | | #??### ## """ # # """"""" #?????????? | | #??# # ## """ # # """"""" #?????????? | | #??### * ## """ # # #?????????? | | #??# # ## # # ] #?????????? | | #??# # ! ## """ # # #?????????? | | #??# ##+######## """ # # | #?????????? | | #??### # # ###?#?????# ###########?????????? | | #????### # # #???????# ##############??????? | | ######## ######???????# # ##?????? | | #????????????# # """"""""" "####### | | +##### #????????????# # # # | | # ####?????????# # """"""""" # # | | # +?????????# # % p # # | | """ # #?????????+ % ; * p # """"h# | | """ # #?????????# @ ; * # """" # | | """ + +?????????# ; # """" # | | """ # ##+####?????????# ; # """" # | | """ # # #??????????# ; #h # | | """ # + ! [#??????????# ; # """" # | | """ # # ![[#??????????# ;k #h"""" # | | [ # # ![!#??????????# ;;;;;;;;;##### """ # | | # # #??????????# ; #???# """" # | | # #[ *#??????????# ##########???# # | | ######+######??????????# #????????????# # | | * #???????????? ????##########+###/# | | #??????????? ??? | | """ """ #?????????? ?? | | """ """ #??????????? ] ?? | | """ """ #?????????? H ? | | #?????????? ? | | ###+#######???????????? ? | | #????????? #???? ?? | | ####### #?????????????####### T####### | | #???????????????????###??????? | | #????????????????????????????? | | " +????????????????????????????? | | #????????????????????????????? | | #????????????????????????????? | | ###+#########????????????????????????????? | +----------------------------------------------------+ Best States ------------- Heat Dissipation 54 Energy Generation 33 Energy Capacity 345 Matter Stores 410 Matter Capacity 500 Sight Range 22 Robot Scan Range 15 Terrain Scan Range 16 Terrain Scan Density 1010 ECM Strength 1 Jamming Range 12 Cloak Strength 4 Additional Mass Support 9 Armor Coverage 800 Power Shielding 66 Propulsion Shielding 66 Evasion (%) 65 Melee Accuracy 12 Target Analysis 9 Recoil Reduction 4 Offensive Hacking 25 Defensive Hacking 23 Item Schematics ----------------- Imp. Cesium-ion Thruster | -7/Factory | Scanalyzed Combat Drone Bay | -7/Data Miner | Free Lgt. Regenerative Plating | -7/Data Miner | Free Cld. Cesium-ion Thruster | -7/Data Miner | Free Exp. Power Shielding | -7/Data Miner | Free Cld. Plasma Cannon | -7/Data Miner | Free Nuclear Pulse Array | -7/Data Miner | Free Lyr. Heavy Armor Plating | -7/Data Miner | Free Tesla Rifle | -7/Data Miner | Free Hpw. Shock Rifle | -7/Data Miner | Free Cmb. Gravmag System | -7/Data Miner | Free Adv. Reaction Control System | -7/Data Miner | Free Lrn. Terrain Scanner | -7/Data Miner | Free Exp. Hacking Suite | -5/Factory | Scanalyzed Med. Storage Unit | -5/Factory | Hacked Robot Schematics ------------------ Y-54 Guardian | -7/Data Miner | Free O-24 Administrator | -7/Data Miner | Free A-15 Conveyor | -7/Data Miner | Free S-27 Virus | -7/Data Miner | Free Y-64 Sentinel | -7/Data Miner | Free B-60 Warrior | -7/Data Miner | Free Fabricated ------------ Cld. Cesium-ion Thruster | x1 | -6/Factory Cld. Cesium-ion Thruster | x1 | -5/Factory Repaired ---------- Lgt. Nuclear Core | 6% | -8/Materials Studied --------- None Alien Tech Used ----------------- None Achievements -------------- Art Critic Bumper Bots DATA ERROR: Steam Global Achievement% Do Not Disturb Fixer-Upper For Emergencies Only Heavy Suspicion Look Less Dangerous Next Time Mistaken Identity Myspace Organ Harvest Overwhelming Spot Them First Survival Of The Most Covered That Tickles There's More Where That Came From Throw Away The Key Challenges ------------ None Game ------ Seed ArmorEtherialMatter Manual? 0 Play Time 02:59:24 Cumulative 431.1 hours Start 2026.02.05 @ 11:48:43 End 2026.02.05 @ 14:59:53 Sessions 3 Manual Loads 0 Difficulty Rogue Special Mode None Game No. 205 Rogue 205 Adventurer 0 Explorer 0 Win Type - Total 15 Types 8/0/5/2/0/0/0/0/0/0 Lore% 52 Gallery% 70 Achievement% 42 Wizard Run 0 Options --------- Layout 0 ASCII 0 Keyboard 0 Movement Numpad Keybinds 0 Fullscreen 1 Font 18/SmallcapsGlow Map View 76x50 Zoom Use 0% Tactical HUD 1 Map Filters NONE Filters NONE Steam 1 RUN: f159cf1e-b4ec-4d75-b510-a0bba9042ddb